fUSD/lending_fUSD_20240520
["ID","MTS","AMOUNT","RATE_DAILY","PERIOD"]
[327528439,1716168645200,-500.0,0.00015,2]
[327528440,1716168645209,-500.0,0.00015,2]
[327528441,1716168645219,-500.0,0.00015,2]
[327528442,1716168645229,-500.0,0.00015,2]
[327528443,1716168645238,-500.0,0.00015,2]
[327528444,1716168645248,-500.0,0.00015,2]
[327528445,1716168645258,-500.0,0.00015,2]
[327528446,1716168645268,-500.0,0.00015,2]
[327528447,1716168645279,-500.0,0.00015,2]
[327528448,1716168645288,-500.0,0.00015,2]
[327528449,1716168645298,-500.0,0.00015,2]
[327528450,1716168645308,-500.0,0.00015,2]
[327528451,1716168645317,-500.0,0.00015,2]
[327528452,1716168645327,-500.0,0.00015,2]
[327528453,1716168645335,-500.0,0.00015,2]
[327528454,1716168645343,-500.0,0.00015,2]
[327528455,1716168645351,-500.0,0.00015,2]
[327528456,1716168645359,-500.0,0.00015,2]
[327528457,1716168645367,-500.0,0.00015,2]
[327528458,1716168645375,-500.0,0.00015,2]
[327528459,1716168645383,-500.0,0.00015,2]
[327528460,1716168645391,-500.0,0.00015,2]
[327528461,1716168645399,-500.0,0.00015,2]
[327528462,1716168645408,-500.0,0.00015,2]
[327528463,1716168645416,-500.0,0.00015,2]
[327528464,1716168645424,-500.0,0.00015,2]
[327528465,1716168645432,-500.0,0.00015,2]
[327528466,1716168645440,-500.0,0.00015,2]
[327528467,1716168645448,-500.0,0.00015,2]
[327528468,1716168645457,-500.0,0.00015,2]
[327528469,1716168645467,-500.0,0.00015,2]
[327528470,1716168645475,-500.0,0.00015,2]
[327528471,1716168645483,-500.0,0.00015,2]
[327528472,1716168645492,-500.0,0.00015,2]
[327528473,1716168645501,-500.0,0.00015,2]
[327528474,1716168645509,-500.0,0.00015,2]
[327528475,1716168645518,-500.0,0.00015,2]
[327528476,1716168645526,-500.0,0.00015,2]
[327528477,1716168645534,-500.0,0.00015,2]
[327528478,1716168645544,-500.0,0.00015,2]
[327528479,1716168645557,-500.0,0.00015,2]
[327528480,1716168645565,-500.0,0.00015,2]
[327528481,1716168645574,-500.0,0.00015,2]
[327528482,1716168645583,-500.0,0.00015,2]
[327528483,1716168645592,-500.0,0.00015,2]
[327528484,1716168645600,-500.0,0.00015,2]
[327528485,1716168645608,-500.0,0.00015,2]
[327528486,1716168645616,-500.0,0.00015,2]
[327528487,1716168645624,-500.0,0.00015,2]
[327528488,1716168645635,-500.0,0.00015,2]
[327528489,1716168645644,-500.0,0.00015,2]
[327528490,1716168645652,-500.0,0.00015,2]
[327528491,1716168645661,-500.0,0.00015,2]
[327528492,1716168645669,-500.0,0.00015,2]
[327528493,1716168645677,-500.0,0.00015,2]
[327528494,1716168645685,-500.0,0.00015,2]
[327528495,1716168645693,-500.0,0.00015,2]
[327528496,1716168645701,-500.0,0.00015,2]
[327528497,1716168645710,-500.0,0.00015,2]
[327528498,1716168645718,-500.0,0.00015,2]
[327528499,1716168645727,-500.0,0.00015,2]
[327528500,1716168645735,-500.0,0.00015,2]
[327528501,1716168645743,-500.0,0.00015,2]
[327528502,1716168645752,-500.0,0.00015,2]
[327528503,1716168645760,-500.0,0.00015,2]
[327528504,1716168645769,-500.0,0.00015,2]
[327528505,1716168645778,-500.0,0.00015,2]
[327528506,1716168645786,-500.0,0.00015,2]
[327528507,1716168645794,-500.0,0.00015,2]
[327528508,1716168645802,-500.0,0.00015,2]
[327528509,1716168645810,-500.0,0.00015,2]
[327528510,1716168645818,-500.0,0.00015,2]
[327528511,1716168645826,-500.0,0.00015,2]
[327528512,1716168645834,-500.0,0.00015,2]
[327528513,1716168645842,-500.0,0.00015,2]
[327528514,1716168645850,-500.0,0.00015,2]
[327528515,1716168645858,-500.0,0.00015,2]
[327528516,1716168645866,-500.0,0.00015,2]
[327528517,1716168645874,-500.0,0.00015,2]
[327528518,1716168645883,-500.0,0.00015,2]
[327528519,1716168645891,-500.0,0.00015,2]
[327528520,1716168645899,-500.0,0.00015,2]
[327528521,1716168645908,-500.0,0.00015,2]
[327528522,1716168645916,-500.0,0.00015,2]
[327528523,1716168645924,-500.0,0.00015,2]
[327528524,1716168645932,-500.0,0.00015,2]
[327528525,1716168645940,-500.0,0.00015,2]
[327528526,1716168645948,-500.0,0.00015,2]
[327528527,1716168645956,-500.0,0.00015,2]
[327528528,1716168645964,-500.0,0.00015,2]
[327528529,1716168645972,-500.0,0.00015,2]
[327528530,1716168645980,-500.0,0.00015,2]
[327528531,1716168645989,-500.0,0.00015,2]
[327528532,1716168645997,-500.0,0.00015,2]
[327528533,1716168646005,-500.0,0.00015,2]
[327528534,1716168646014,-500.0,0.00015,2]
[327528535,1716168646023,-500.0,0.00015,2]
[327528536,1716168646031,-500.0,0.00015,2]
[327528537,1716168646040,-500.0,0.00015,2]
[327528538,1716168646048,-500.0,0.00015,2]
[327528539,1716168646057,-500.0,0.00015,2]
[327528540,1716168646066,-500.0,0.00015,2]
[327528541,1716168646074,-500.0,0.00015,2]
[327528542,1716168646082,-500.0,0.00015,2]
[327528543,1716168646090,-500.0,0.00015,2]
[327528544,1716168646097,-500.0,0.00015,2]
[327528545,1716168646105,-500.0,0.00015,2]
[327528546,1716168646111,-500.0,0.00015,2]
[327528547,1716168646119,-500.0,0.00015,2]
[327528549,1716168646126,-500.0,0.00015,2]
[327528550,1716168646133,-500.0,0.00015,2]
[327528552,1716168646140,-3437.53250092,0.00015,2]
[327528554,1716168646150,-300.0,0.00015068,2]
[327528555,1716168646159,-2000.0,0.0001515,2]
[327528556,1716168646168,-200.0,0.0001515,2]
[327528557,1716168646178,-174.27,0.00015383,2]
[327528558,1716168646187,-200.0,0.00015396,2]
[327528559,1716168646197,-15628.91282313,0.000154,2]
[327528560,1716168646207,-158.04,0.00015534,2]
[327528561,1716168646216,-224.63,0.00015548,2]
[327528562,1716168646225,-11056.55,0.00015753,2]
[327528563,1716168646234,-197.61,0.00015788,2]
[327528564,1716168646244,-167.0,0.00015831,2]
[327528565,1716168646253,-167.0,0.00015831,2]
[327528566,1716168646263,-3479.39,0.00015864,2]
[327528567,1716168646272,-11067.0,0.000159,2]
[327528568,1716168646282,-89095.09543327,0.00016,2]
[327528569,1716168646291,-150.0,0.00016,2]
[327528570,1716168646301,-9999.99,0.00016116,2]
[327528571,1716168646311,-150.0,0.00016187,2]
[327528572,1716168646320,-809.0,0.000162,2]
[327528573,1716168646330,-612.0,0.000162,2]
[327528574,1716168646339,-439.0,0.000162,2]
[327528575,1716168646348,-444.0,0.000162,2]
[327528576,1716168646357,-1648.0,0.000162,2]
[327528577,1716168646367,-2394.0,0.000162,2]
[327528578,1716168646377,-2812.491,0.000162,2]
[327528579,1716168646386,-1137.0,0.000162,2]
[327528580,1716168646396,-2160.0,0.000162,2]
[327528581,1716168646406,-289.0,0.000162,2]
[327528582,1716168646415,-4919.139,0.000162,2]
[327528583,1716168646425,-974.0,0.000162,2]
[327528584,1716168646434,-5916.0,0.000162,2]
[327528585,1716168646443,-1053.222,0.000162,2]
[327528586,1716168646452,-16276.53154851,0.000162,2]
[327528609,1716168646988,-21599.46845149,0.000162,2]
[327528611,1716168646998,-1642.0,0.000162,2]
[327528613,1716168647007,-167.0,0.00016354,2]
[327528615,1716168647016,-800.0,0.00016426,2]
[327528617,1716168647027,-5833.28,0.00016438,2]
[327528619,1716168647036,-700.89,0.00016438,2]
[327528621,1716168647044,-300.0,0.00016438,2]
[327528623,1716168647053,-167.0,0.00016702,2]
[327528625,1716168647062,-178.92,0.00016712,2]
[327528627,1716168647071,-250.0,0.00016735,2]
[327528629,1716168647081,-167.0,0.00016876,2]
[327528631,1716168647090,-158.04,0.00016946,2]
[327528633,1716168647099,-5000.0,0.0001695,2]
[327528635,1716168647108,-200.0,0.00017107,2]
[327528637,1716168647118,-224.63,0.00017275,2]
[327528639,1716168647127,-350.0,0.00017283,2]
[327528641,1716168647136,-7350.92453412,0.00017307,2]
[327528643,1716168647145,-5000.0,0.00017307,2]
[327528645,1716168647154,-5000.0,0.00017307,2]
[327528647,1716168647163,-5000.0,0.00017307,2]
[327528649,1716168647172,-5000.0,0.00017307,2]
[327528651,1716168647181,-3000.0,0.0001735,2]
[327528653,1716168647191,-167.0,0.00017399,2]
[327528655,1716168647199,-167.0,0.00017573,2]
[327528657,1716168647208,-174.27,0.00017581,2]
[327528659,1716168647218,-567.466,0.00017677,2]
[327528660,1716168647227,-567.466,0.00017677,2]
[327528662,1716168647236,-567.466,0.00017677,2]
[327528664,1716168647246,-567.466,0.00017677,2]
[327528665,1716168647255,-567.466,0.00017677,2]
[327528668,1716168647264,-567.466,0.00017677,2]
[327528669,1716168647274,-567.466,0.00017677,2]
[327528671,1716168647283,-567.466,0.00017677,2]
[327528673,1716168647293,-567.466,0.00017677,2]
[327528675,1716168647302,-567.466,0.00017677,2]
[327528677,1716168647312,-5000.0,0.00017783,2]
[327528679,1716168647322,-5000.0,0.00017783,2]
[327528682,1716168647331,-5000.0,0.00017783,2]
[327528683,1716168647340,-5000.0,0.00017783,2]
[327528685,1716168647349,-5000.0,0.00017783,2]
[327528687,1716168647358,-450.0,0.00017831,2]
[327528689,1716168647368,-167.0,0.00017921,2]
[327528691,1716168647377,-2373.3265754,0.00018,2]
[327528693,1716168647386,-250.00245932,0.00018,2]
[327528695,1716168647395,-1153.97043655,0.00018,2]
[327528697,1716168647405,-197.61,0.00018052,2]
[327528699,1716168647414,-800.0,0.00018069,2]
[327528701,1716168647423,-550.0,0.00018379,2]
[327528703,1716168647435,-167.0,0.00018444,2]
[327528705,1716168647444,-167.0,0.00018444,2]
[327528707,1716168647453,-3479.39,0.00018604,2]
[327528709,1716168647462,-200.0,0.00018817,2]
[327528711,1716168647471,-214.0,0.000189,2]
[327528713,1716168647480,-650.0,0.00018927,2]
[327528715,1716168647490,-155.07911752,0.00019,2]
[327528717,1716168647499,-150.0,0.00019,2]
[327528719,1716168647508,-38261.98719878,0.00019,2]
[327528721,1716168647518,-2217.28721132,0.00019,2]
[327528723,1716168647528,-224.63,0.00019003,2]
[327528725,1716168647537,-500.0,0.00019178,2]
[327528727,1716168647551,-500.0,0.00019178,2]
[327528729,1716168647560,-500.0,0.00019178,2]
[327528731,1716168647568,-500.0,0.00019178,2]
[327528733,1716168647578,-500.0,0.00019178,2]
[327528735,1716168647588,-500.0,0.00019178,2]
[327528737,1716168647597,-500.0,0.00019178,2]
[327528739,1716168647606,-500.0,0.00019178,2]
[327528741,1716168647616,-500.0,0.00019178,2]
[327528743,1716168647627,-500.0,0.00019178,2]
[327528745,1716168647636,-500.0,0.00019178,2]
[327528747,1716168647646,-500.0,0.00019178,2]
[327528749,1716168647655,-500.0,0.00019178,2]
[327528751,1716168647664,-500.0,0.00019178,2]
[327528753,1716168647673,-500.0,0.00019178,2]
[327528755,1716168647682,-500.0,0.00019178,2]
[327528757,1716168647691,-418.94165385,0.00019178,2]
[327528759,1716168647700,-500.0,0.00019178,2]
[327528761,1716168647710,-500.0,0.00019178,2]
[327528763,1716168647720,-500.0,0.00019178,2]
[327528765,1716168647729,-500.0,0.00019178,2]
[327528767,1716168647738,-500.0,0.00019178,2]
[327528769,1716168647747,-500.0,0.00019178,2]
[327528771,1716168647756,-500.0,0.00019178,2]
[327528773,1716168647766,-500.0,0.00019178,2]
[327528775,1716168647777,-500.0,0.00019178,2]
[327528777,1716168647786,-500.0,0.00019178,2]
[327528779,1716168647796,-500.0,0.00019178,2]
[327528781,1716168647805,-500.0,0.00019178,2]
[327528783,1716168647814,-500.0,0.00019178,2]
[327528785,1716168647823,-500.0,0.00019178,2]
[327528787,1716168647832,-500.0,0.00019178,2]
[327528789,1716168647841,-500.0,0.00019178,2]
[327528791,1716168647850,-500.0,0.00019178,2]
[327528793,1716168647859,-500.0,0.00019178,2]
[327528795,1716168647868,-500.0,0.00019178,2]
[327528797,1716168647877,-500.0,0.00019178,2]
[327528799,1716168647886,-500.0,0.00019178,2]
[327528801,1716168647895,-500.0,0.00019178,2]
[327528803,1716168647904,-500.0,0.00019178,2]
[327528805,1716168647915,-500.0,0.00019178,2]
[327528807,1716168647924,-500.0,0.00019178,2]
[327528809,1716168647933,-500.0,0.00019178,2]
[327528811,1716168647942,-500.0,0.00019178,2]
[327528813,1716168647951,-500.0,0.00019178,2]
[327528815,1716168647959,-500.0,0.00019178,2]
[327528817,1716168647969,-500.0,0.00019178,2]
[327528819,1716168647977,-650.0,0.00019178,2]
[327528821,1716168647987,-500.0,0.00019178,2]
[327528823,1716168647996,-500.0,0.00019178,2]
[327528825,1716168648005,-500.0,0.00019178,2]
[327528827,1716168648014,-500.0,0.00019178,2]
[327528829,1716168648025,-500.0,0.00019178,2]
[327528831,1716168648034,-500.0,0.00019178,2]
[327528833,1716168648043,-500.0,0.00019178,2]
[327528835,1716168648052,-3132.18,0.00019178,2]
[327528836,1716168648061,-12658.25,0.00019178,2]
[327528838,1716168648070,-55000.0,0.00019178,2]
[327528840,1716168648079,-3879.78323331,0.000192,2]
[327528842,1716168648089,-809.0,0.000192,2]
[327528844,1716168648098,-212.186,0.000192,2]
[327528845,1716168648107,-444.0,0.000192,2]
[327528846,1716168648116,-1648.0,0.000192,2]
[327528847,1716168648125,-2394.0,0.000192,2]
[327528848,1716168648134,-1137.0,0.000192,2]
[327528849,1716168648142,-2160.0,0.000192,2]
[327528850,1716168648151,-974.0,0.000192,2]
[327528851,1716168648161,-3476.994,0.000192,2]
[327528852,1716168648170,-3372.821,0.000192,2]
[327528853,1716168648179,-1642.0,0.000192,2]
[327528854,1716168648188,-150.0,0.00019386,2]
[327528855,1716168648197,-150.0,0.00019454,2]
[327528856,1716168648206,-150.0,0.0001947,2]
[327528857,1716168648215,-750.0,0.00019475,2]
[327528858,1716168648224,-472.17957604,0.000195,2]
[327528860,1716168648234,-19612.15827033,0.000196,2]
[327528862,1716168648243,-150.0,0.00019605,2]
[327528864,1716168648252,-178.92,0.00019658,2]
[327528866,1716168648262,-800.0,0.00019711,2]
[327528868,1716168648271,-150.0,0.00019761,2]
[327528870,1716168648282,-174.27,0.00019778,2]
[327528872,1716168648291,-3000.0,0.0001985,2]
[327528874,1716168648300,-150.0,0.00019871,2]
[327528876,1716168648309,-150.0,0.00019923,2]
[327528878,1716168648318,-150.0,0.00019948,2]
[327528880,1716168648328,-150.0,0.00019975,2]
[327528883,1716168648337,-203.52525364,0.0002,2]
[327528885,1716168648347,-155.0,0.0002,2]
[327528887,1716168648356,-627.66739733,0.0002,2]
[327528889,1716168648365,-810.3382886,0.0002,2]
[327528891,1716168648374,-291.00639433,0.0002,2]
[327528892,1716168648382,-3073.1,0.0002,2]
[327528894,1716168648392,-3738.51194369,0.0002,2]
[327528897,1716168648401,-6653.0,0.0002,2]
[327528913,1716168648545,-2988.02012137,0.0002,2]
[327528915,1716168648558,-3950.0,0.0002,2]
[327528917,1716168648567,-2559.93123565,0.0002,2]
[327528919,1716168648576,-1772.7402264,0.0002,2]
[327528921,1716168648586,-169.71660916,0.0002,2]
[327528923,1716168648595,-5183.76903426,0.0002,2]
[327528925,1716168648604,-155.0,0.0002,2]
[327528927,1716168648613,-155.0,0.0002,2]
[327528929,1716168648622,-6236.99071779,0.0002,2]
[327528931,1716168648632,-155.0,0.0002,2]
[327528933,1716168648641,-155.0,0.0002,2]
[327528935,1716168648650,-861.926251,0.0002,2]
[327528937,1716168648660,-1262.54402058,0.0002,2]
[327528939,1716168648669,-158.00167468,0.0002,2]
[327528941,1716168648678,-343.0,0.0002,2]
[327528943,1716168648687,-2467.99607305,0.0002,2]
[327528945,1716168648697,-1401.0,0.0002,2]
[327528947,1716168648706,-189.0,0.0002,2]
[327528949,1716168648715,-277.57647969,0.0002,2]
[327528951,1716168648724,-219.68097114,0.0002,4]
[327528953,1716168648734,-2227.50179135,0.0002,2]
[327528955,1716168648743,-30000.0,0.0002,3]
[327528957,1716168648752,-215.61914165,0.0002,2]
[327528959,1716168648761,-971.0,0.0002,2]
[327528961,1716168648770,-687.0,0.0002,2]
[327528963,1716168648781,-643.53521768,0.00020023,2]
[327528965,1716168648790,-150.0,0.00020069,2]
[327528967,1716168648800,-7600.0,0.0002009,2]
[327528970,1716168648809,-150.0,0.00020258,2]
[327528972,1716168648818,-150.0,0.00020276,2]
[327528973,1716168648827,-150.0,0.00020278,2]
[327528975,1716168648836,-150.0,0.00020299,2]
[327528978,1716168648846,-3134.39255979,0.00020303,2]
[327528980,1716168648855,-197.61,0.00020316,2]
[327528982,1716168648864,-150.0,0.00020392,2]
[327528984,1716168648874,-181.11,0.00020447,2]
[327528985,1716168648883,-157.0521,0.00020448,2]
[327528988,1716168648892,-150.0,0.00020496,2]
[327528990,1716168648902,-30000.0,0.000205,2]
[327528992,1716168648911,-150.0,0.000205,2]
[327528994,1716168648920,-200.0,0.00020528,2]
[327528996,1716168648929,-170.72,0.00020548,2]
[327528998,1716168648938,-19915.46,0.00020548,2]
[327529000,1716168648947,-150.0,0.00020564,2]
[327529002,1716168648957,-150.0,0.00020595,2]
[327529004,1716168648966,-150.0,0.00020657,2]
[327529006,1716168648977,-150.0,0.00020665,2]
[327529008,1716168648986,-150.0,0.00020725,2]
[327529010,1716168648994,-224.63,0.0002073,2]
[327529012,1716168649003,-150.0,0.00020765,2]
[327529013,1716168649012,-150.0,0.00020852,2]
[327529015,1716168649021,-152.0,0.00020916,2]
[327529018,1716168649032,-152.0,0.00020916,2]
[327529019,1716168649042,-150.0,0.00020947,2]
[327529022,1716168649052,-818.45581302,0.00021,2]
[327529024,1716168649062,-1435.94088474,0.00021,2]
[327529026,1716168649071,-11763.6486839,0.00021,2]
[327529028,1716168649085,-10609.45493563,0.00021,2]
[327529030,1716168649097,-7626.89638047,0.00021,2]
[327529032,1716168649106,-150.0,0.00021,2]
[327529034,1716168649115,-150.0,0.00021001,2]
[327529036,1716168649125,-150.0,0.00021023,2]
[327529038,1716168649134,-150.0,0.00021024,2]
[327529041,1716168649143,-150.0,0.00021172,2]
[327529043,1716168649153,-150.0,0.00021213,2]
[327529045,1716168649163,-150.0,0.00021266,2]
[327529047,1716168649172,-150.0,0.00021269,2]
[327529049,1716168649183,-150.0,0.00021323,2]
[327529051,1716168649193,-150.0,0.00021328,2]
[327529053,1716168649202,-797.33305069,0.0002137,2]
[327529055,1716168649213,-690.0,0.0002137,2]
[327529057,1716168649224,-755.40891369,0.0002137,2]
[327529060,1716168649236,-3605.45803562,0.0002137,2]
[327529062,1716168649245,-24762.36,0.0002137,2]
[327529064,1716168649255,-150.0,0.0002141,2]
[327529066,1716168649264,-157.0521,0.00021448,2]
[327529068,1716168649273,-150.0,0.00021452,2]
[327529070,1716168649282,-385.0,0.000215,3]
[327529072,1716168649291,-150.0,0.000215,3]
[327529074,1716168649300,-150.0,0.0002156,2]
[327529076,1716168649310,-150.0,0.00021578,2]
[327529078,1716168649319,-150.0,0.00021583,2]
[327529080,1716168649328,-3264.0,0.000216,3]
[327529081,1716168649337,-150.0,0.00021605,2]
[327529084,1716168649347,-150.0,0.00021678,2]
[327529085,1716168649356,-150.0,0.00021743,2]
[327529087,1716168649366,-150.0,0.00021782,2]
[327529090,1716168649375,-150.0,0.00021808,2]
[327529091,1716168649385,-150.0,0.00021834,2]
[327529093,1716168649394,-150.0,0.00021865,2]
[327529094,1716168649403,-150.0,0.00021874,2]
[327529096,1716168649412,-150.0,0.00021883,2]
[327529098,1716168649421,-150.0,0.00021891,2]
[327529100,1716168649431,-6786.49598058,0.000219,2]
[327529102,1716168649442,-1000.0,0.000219,2]
[327529104,1716168649451,-500.8646263,0.00021917,2]
[327529106,1716168649460,-2092.47,0.00021918,2]
[327529108,1716168649468,-409.34,0.00021918,2]
[327529110,1716168649477,-2000.0,0.00021918,2]
[327529112,1716168649487,-150.0,0.00021977,2]
[327529114,1716168649496,-161.09971948,0.00022,2]
[327529116,1716168649505,-5521.22912059,0.00022,2]
[327529118,1716168649514,-955.86062231,0.00022,2]
[327529120,1716168649523,-239.59690032,0.00022,2]
[327529122,1716168649533,-1058.29692934,0.00022,2]
[327529124,1716168649543,-159.0,0.00022,2]
[327529126,1716168649556,-150.0,0.00022,3]
[327529128,1716168649566,-150.0,0.00022045,2]
[327529130,1716168649576,-150.0,0.0002206,2]
[327529132,1716168649586,-150.0,0.0002206,2]
[327529134,1716168649596,-150.0,0.00022073,2]
[327529136,1716168649607,-150.0,0.00022075,2]
[327529138,1716168649616,-150.0,0.00022077,2]
[327529140,1716168649628,-224.70312909,0.0002211,2]
[327529142,1716168649638,-152.0,0.00022141,2]
[327529144,1716168649647,-150.0,0.00022198,2]
[327529146,1716168649656,-1642.972,0.000222,2]
[327529148,1716168649665,-2394.0,0.000222,2]
[327529150,1716168649675,-2160.0,0.000222,2]
[327529152,1716168649684,-974.0,0.000222,2]
[327529154,1716168649693,-150.0,0.00022213,2]
[327529156,1716168649702,-227.63264305,0.00022286,2]
[327529158,1716168649712,-150.0,0.00022323,2]
[327529160,1716168649722,-3000.0,0.0002235,2]
[327529162,1716168649731,-150.0,0.00022441,2]
[327529164,1716168649740,-6134.8489401,0.00022441,2]
[327529166,1716168649749,-157.0521,0.00022448,2]
[327529168,1716168649759,-150.0,0.00022469,2]
[327529170,1716168649768,-33127.10688135,0.000225,2]
[327529172,1716168649778,-2500.0,0.000225,2]
[327529174,1716168649787,-150.0,0.000225,3]
[327529176,1716168649796,-197.61,0.0002258,2]
[327529178,1716168649806,-178.92,0.00022603,2]
[327529180,1716168649815,-150.0,0.00022638,2]
[327529182,1716168649824,-150.0,0.00022646,2]
[327529184,1716168649834,-150.0,0.00022648,2]
[327529186,1716168649843,-159.99363732,0.00022689,2]
[327529188,1716168649852,-150.0,0.00022727,2]
[327529190,1716168649861,-150.0,0.00022753,2]
[327529192,1716168649870,-154.51679898,0.00022759,2]
[327529194,1716168649879,-701.13692025,0.00022772,2]
[327529196,1716168649888,-150.0,0.00022778,2]
[327529198,1716168649898,-300.12357253,0.0002278,2]
[327529200,1716168649907,-150.0,0.00022811,2]
[327529202,1716168649915,-159.99363732,0.00022815,2]
[327529204,1716168649924,-166.66666666,0.00022827,2]
[327529206,1716168649934,-158.96537893,0.00022874,2]
[327529208,1716168649943,-150.0,0.00022876,2]
[327529210,1716168649952,-183.27340083,0.00022876,2]
[327529212,1716168649961,-554.97695703,0.0002291,2]
[327529214,1716168649970,-701.13692025,0.00022911,2]
[327529216,1716168649980,-150.0,0.00022916,2]
[327529218,1716168649990,-299.93872796,0.0002292,2]
[327529220,1716168649999,-554.97695703,0.00022955,2]
[327529222,1716168650009,-154.51679898,0.00022986,2]
[327529223,1716168650018,-827.7341731,0.00022986,2]
[327529224,1716168650029,-180.0,0.00022996,3]
[327529225,1716168650038,-240.09787811,0.00023,2]
[327529226,1716168650047,-277020.76344335,0.00023,2]
[327529227,1716168650056,-12654.37793828,0.00023,2]
[327529228,1716168650065,-246.0,0.00023,3]
[327529229,1716168650075,-398.347585,0.00023,2]
[327529230,1716168650084,-1500.0,0.00023,2]
[327529231,1716168650093,-150.0,0.00023,3]
[327529232,1716168650102,-554.97695703,0.00023001,2]
[327529233,1716168650111,-434.56969276,0.00023002,2]
[327529235,1716168650121,-150.0,0.00023014,2]
[327529236,1716168650130,-300.12357253,0.00023068,2]
[327529237,1716168650139,-434.56969276,0.00023086,2]
[327529238,1716168650149,-554.97695703,0.00023193,2]
[327529239,1716168650158,-178.58367512,0.00023247,2]
[327529240,1716168650167,-299.93872796,0.0002325,2]
[327529241,1716168650177,-150.0,0.00023259,2]
[327529242,1716168650186,-701.13692025,0.00023271,2]
[327529243,1716168650195,-380.0,0.00023288,2]
[327529244,1716168650205,-380.0,0.00023288,2]
[327529245,1716168650214,-380.0,0.00023288,2]
[327529246,1716168650223,-380.0,0.00023288,2]
[327529247,1716168650232,-380.0,0.00023288,2]
[327529248,1716168650241,-366.89,0.00023288,2]
[327529249,1716168650250,-380.0,0.00023288,2]
[327529250,1716168650259,-380.0,0.00023288,2]
[327529251,1716168650268,-379.98,0.00023288,2]
[327529252,1716168650278,-150.0,0.00023308,2]
[327529253,1716168650288,-150.0,0.00023333,2]
[327529254,1716168650297,-150.0,0.00023336,2]
[327529255,1716168650306,-152.99399679,0.00023348,2]
[327529256,1716168650316,-150.0,0.00023363,2]
[327529257,1716168650325,-2008.81840537,0.000234,2]
[327529258,1716168650333,-554.97695703,0.00023416,2]
[327529259,1716168650342,-1326.60489925,0.00023435,2]
[327529260,1716168650352,-157.0521,0.00023448,4]
[327529261,1716168650362,-1199.89389792,0.00023457,2]
[327529262,1716168650370,-2426.93763562,0.00023459,2]
[327529263,1716168650379,-150.0,0.00023497,2]
[327529264,1716168650388,-47091.83637428,0.00023498,2]
[327529265,1716168650397,-19306.16293134,0.000235,2]
[327529266,1716168650406,-166.66666666,0.000235,2]
[327529267,1716168650415,-1500.0,0.000235,2]
[327529268,1716168650425,-216.53337881,0.000235,2]
[327529269,1716168650434,-168.85323232,0.000235,2]
[327529270,1716168650443,-150.0,0.000235,3]